bitfinex/quotes_ETHUSD_20241001
["timestamp","ask_amount","ask_price","bid_price","bid_amount"]
[1727755738143,3.79442,2635.5,2635.2,20.02051026]
[1727755738660,3.79442,2635.5,2635.2,0.07051026]
[1727755739969,3.79442,2635.5,2635.2,20.02051026]
[1727755741737,3.79421,2635.6,2635.2,20.02051026]
[1727755742568,3.79384,2635.9,2635.4,1.6322]
[1727755742777,4.5144,2636.0,2635.4,1.6322]
[1727755742982,3.79335,2636.2,2635.5,3.86533785]
[1727755743135,3.79349,2636.1,2635.6,2.18195379]
[1727755743335,3.79349,2636.1,2635.6,2.25297928]
[1727755743532,3.79349,2636.1,2635.6,6.04708928]
[1727755744084,9.10099,2636.3,2635.6,6.04708928]
[1727755744237,3.79344,2636.2,2635.6,6.04708928]
[1727755747580,5.30768,2636.3,2635.6,2.25297928]
[1727755747752,3.79349,2636.1,2635.6,6.04713928]
[1727755749305,3.79349,2636.1,2635.6,2.25297928]
[1727755749589,7.58705,2636.1,2635.6,2.25297928]
[1727755750092,3.79385,2635.9,2635.6,1.70322549]
[1727755750445,7.58774,2635.9,2635.6,1.70322549]
[1727755750639,3.79385,2635.9,2635.6,1.70322549]
[1727755751070,3.79357,2636.1,2635.6,1.70322549]
[1727755751071,3.79367,2636.0,2635.6,1.70322549]
[1727755751373,3.79357,2636.1,2635.6,1.70322549]
[1727755751781,3.79357,2636.1,2635.6,5.49741549]
[1727755752078,3.79367,2636.0,2635.6,1.70322549]
[1727755752442,3.79357,2636.1,2635.6,1.70322549]
[1727755752748,3.79366,2636.0,2635.6,1.70322549]
[1727755753140,3.79357,2636.1,2635.6,1.70322549]
[1727755753346,3.79367,2636.0,2635.6,1.70322549]
[1727755753746,3.79357,2636.1,2635.6,1.70322549]
[1727755754141,3.4988364,2636.2,2635.9,1.6654]
[1727755754372,3.79297,2636.5,2635.9,5.45916]
[1727755754594,3.79297,2636.5,2636.0,0.07064443]
[1727755755258,3.79314,2636.4,2636.0,0.07064443]
[1727755757185,3.79278,2636.6,2636.0,0.07064443]
[1727755757479,7.58566,2636.6,2636.2,1.6355]
[1727755757802,3.79292,2636.5,2636.3,0.07044046]
[1727755758894,3.79305,2636.4,2636.3,0.07044046]
[1727755759088,9.7012834,2636.4,2636.3,0.07044046]
[1727755759427,9.7012834,2636.4,2635.6,1.6523]
[1727755759428,3.79413,2635.7,2635.6,1.6523]
[1727755759731,3.79434,2635.5,2635.4,1.5981]
[1727755760174,3.79421,2635.6,2635.4,1.5981]
[1727755760789,3.79434,2635.5,2635.4,1.5981]
[1727755760989,3.79421,2635.6,2635.4,1.5981]
[1727755761679,3.79434,2635.5,2635.4,1.5981]
[1727755762516,3.79434,2635.5,2635.2,1.6415]
[1727755764205,3.79421,2635.6,2635.2,1.6415]
[1727755765448,3.79435,2635.5,2635.2,1.6415]
[1727755765796,3.79421,2635.6,2635.2,1.6415]
[1727755766233,3.79435,2635.5,2635.2,1.6415]
[1727755766796,3.79421,2635.6,2635.2,1.6415]
[1727755767445,3.795,2635.1,2634.9,8.8588]
[1727755767593,1.6655,2635.5,2634.9,1.5188]
[1727755767594,3.79506,2635.0,2634.9,1.5188]
[1727755767795,5.0374364,2635.0,2634.4,1.6423]
[1727755768046,5.0374364,2635.0,2634.3,7.34]
[1727755768047,7.2944764,2634.6,2634.3,7.34]
[1727755768191,7.2944764,2634.6,2634.2,1.6423]
[1727755768396,3.79579,2634.5,2634.2,1.6423]
[1727755769708,5.36347,2634.4,2633.9,0.37790478]
[1727755769941,3.79609,2634.3,2633.9,0.75581006]
[1727755770242,8.8623064,2634.4,2633.9,0.75581006]
[1727755770397,3.79623,2634.2,2633.9,0.37790478]
[1727755771941,3.79641,2634.1,2633.7,8.9841]
[1727755772147,3.79635,2634.2,2633.7,1.6441]
[1727755772448,3.79651,2634.0,2633.7,1.6441]
[1727755772743,3.79635,2634.2,2633.7,1.6441]
[1727755772898,7.5927,2634.2,2633.7,1.6441]
[1727755773233,3.79635,2634.2,2633.7,1.6441]
[1727755774153,3.79651,2634.0,2633.5,21.5374]
[1727755774302,3.79651,2634.0,2633.8,0.05928791]
[1727755774496,3.79651,2634.0,2633.5,24.070872]
[1727755774934,3.79652,2634.0,2633.6,0.05957304]
[1727755778333,3.79635,2634.2,2633.6,0.05957304]
[1727755778546,3.79638,2634.1,2633.6,0.05957304]
[1727755778837,5.36339,2634.4,2633.7,1.6661]
[1727755779140,3.79611,2634.3,2633.9,1.5626]
[1727755779734,3.79611,2634.3,2634.0,0.05999258]
[1727755779936,3.79599,2634.4,2634.0,0.05999258]
[1727755780826,7.59202,2634.4,2634.0,0.05999258]
[1727755781027,3.79599,2634.4,2634.0,0.05999258]
[1727755781404,3.79633,2634.2,2634.0,0.05999258]
[1727755781752,3.79636,2634.1,2634.0,0.05999258]
[1727755782425,3.79636,2634.1,2633.7,1.6292]
[1727755782426,3.79666,2633.9,2633.7,1.6292]
[1727755782739,3.79666,2633.9,2633.5,8.8441]
[1727755783543,3.79636,2634.1,2633.5,10.108245]
[1727755783718,3.79636,2634.1,2633.6,3.79706]
[1727755783919,3.79629,2634.2,2633.7,3.79692]
[1727755784110,5.46207,2634.5,2633.8,1.5157]
[1727755784314,3.79611,2634.3,2633.8,1.5157]
[1727755784614,3.79611,2634.3,2633.8,2.43425346]
[1727755785045,3.79611,2634.3,2633.8,5.31241]
[1727755785343,3.79586,2634.5,2633.8,5.38829548]
[1727755785549,3.79596,2634.4,2633.8,5.31237]
[1727755785919,3.79596,2634.4,2633.9,3.79662]
[1727755786112,3.79596,2634.4,2634.0,1.5826]
[1727755786314,3.7961,2634.3,2634.0,1.5826]
[1727755789216,3.7961,2634.3,2634.1,0.05986541]
[1727755790148,7.59226,2634.3,2634.1,0.05986541]
[1727755790361,3.7961,2634.3,2634.1,0.05986541]
[1727755791253,7.59227,2634.3,2634.1,0.05986541]
[1727755791457,3.79621,2634.2,2634.1,0.05986541]
[1727755791624,3.7961,2634.3,2634.1,0.05986541]
[1727755793272,3.79621,2634.2,2634.1,0.05986541]
[1727755796081,3.7961,2634.3,2634.1,0.05986541]
[1727755796373,7.59227,2634.3,2634.1,0.05986541]
[1727755796673,3.7961,2634.3,2634.1,0.05986541]
[1727755797142,7.59226,2634.3,2634.1,0.05986541]
[1727755797339,3.79621,2634.2,2634.1,0.05986541]
[1727755797773,3.79621,2634.2,2633.8,1.5066]
[1727755797774,3.7961,2634.3,2633.8,1.5066]
[1727755797936,3.7961,2634.3,2634.1,0.05986541]
[1727755798137,3.7961,2634.3,2633.8,1.5066]
[1727755798350,3.7961,2634.3,2633.9,0.05992712]
[1727755800078,3.79621,2634.2,2633.9,0.05992712]
[1727755800380,3.79622,2634.2,2633.9,0.05992712]
[1727755800878,3.7961,2634.3,2633.9,0.05992712]
[1727755801075,3.79623,2634.2,2633.9,0.05992712]
[1727755801387,3.7961,2634.3,2633.9,0.05992712]
[1727755801589,3.7961,2634.3,2634.0,1.5697]
[1727755801944,3.7961,2634.3,2634.0,1.62953848]
[1727755802143,3.79628,2634.2,2634.0,1.62953848]
[1727755802577,3.7961,2634.3,2634.0,1.62953848]
[1727755803046,3.79636,2634.1,2634.0,0.05983848]
[1727755803581,3.79636,2634.1,2633.8,1.6487]
[1727755803781,9.2189,2634.3,2634.0,0.05984233]
[1727755804078,7.59225,2634.3,2633.8,1.6487]
[1727755804289,3.79622,2634.2,2634.1,0.05981148]
[1727755804494,3.79622,2634.2,2633.8,1.6487]
[1727755804651,3.79622,2634.2,2634.1,0.05981148]
[1727755804849,3.79622,2634.2,2633.8,1.6487]
[1727755805071,3.79622,2634.2,2634.1,0.05981148]
[1727755805275,3.79622,2634.2,2633.8,2.20085489]
[1727755805796,3.79622,2634.2,2633.9,0.05987319]
[1727755806088,3.7964,2634.1,2633.9,0.05987319]
[1727755807549,3.79623,2634.2,2633.9,0.05987319]
[1727755809363,3.79616,2634.3,2633.9,0.05987319]
[1727755809562,3.79616,2634.3,2633.9,0.6180164]
[1727755810188,3.79611,2634.3,2633.9,0.6180164]
[1727755810398,3.79623,2634.2,2633.9,0.05987319]
[1727755810757,3.79638,2634.1,2633.9,0.05987319]
[1727755810963,3.7965,2634.0,2633.9,0.05987319]
[1727755811456,5.05876164,2634.0,2633.4,1.552]
[1727755811657,5.05876164,2634.0,2633.9,0.05986934]
[1727755811965,5.32627,2634.1,2633.6,3.797]
[1727755812155,3.79637,2634.1,2633.7,1.61004429]
[1727755812353,3.79608,2634.3,2633.7,1.61004429]
[1727755812594,3.79608,2634.3,2633.8,3.7967]
[1727755812794,3.79608,2634.3,2633.8,3.85471343]
[1727755812958,3.79608,2634.3,2633.8,4.39538786]
[1727755813472,3.79608,2634.3,2633.8,0.59868786]
[1727755813861,3.79608,2634.3,2633.8,4.39537786]
[1727755815827,3.79608,2634.3,2633.8,0.59868786]
[1727755816856,3.79559,2634.7,2634.1,3.79634]
[1727755817197,3.79558,2634.7,2634.2,5.48730867]
[1727755817399,3.79558,2634.7,2634.2,5.54519868]
[1727755817600,3.79558,2634.7,2634.3,0.55451987]
[1727755817906,3.79528,2634.9,2634.3,4.40843903]
[1727755818059,3.79586,2634.5,2634.3,0.05785916]
[1727755818405,3.79586,2634.5,2634.4,0.0577898]
[1727755818573,3.79586,2634.5,2634.2,1.6152]
[1727755818899,3.79586,2634.5,2634.3,0.05773976]
[1727755819263,7.59173,2634.5,2634.2,1.6152]
[1727755819593,3.79586,2634.5,2634.4,0.05770891]
[1727755819802,3.79586,2634.5,2634.3,0.05773976]
[1727755819968,3.79559,2634.7,2634.2,5.41138]
[1727755820173,3.79559,2634.7,2634.3,0.05773591]
[1727755820416,3.79559,2634.7,2634.2,6.332159]
[1727755820577,3.79559,2634.7,2634.4,0.05770506]
[1727755820776,3.79571,2634.6,2634.2,2.535979]
[1727755821099,3.7958,2634.5,2634.3,0.05773591]
[1727755821434,3.7958,2634.5,2634.2,1.6152]
[1727755821699,3.79595,2634.4,2634.0,1.6293]
[1727755821912,3.79609,2634.3,2634.0,1.6293]
[1727755822491,3.79609,2634.3,2633.8,1.6169]
[1727755822675,7.59226,2634.3,2633.8,1.6169]
[1727755822879,3.79609,2634.3,2633.8,1.6169]
[1727755823686,9.7111124,2634.5,2633.9,3.79664]
[1727755824202,3.79595,2634.4,2633.9,3.79664]
[1727755824976,3.79595,2634.4,2633.8,1.6169]
[1727755824977,3.79616,2634.3,2633.8,1.6169]
[1727755826789,3.79616,2634.3,2633.8,5.41367]
[1727755828303,3.79616,2634.3,2633.8,1.6169]
[1727755831026,3.79616,2634.3,2633.8,5.41366]
[1727755832797,3.79598,2634.4,2633.9,3.79663]
[1727755832990,3.79593,2634.4,2634.0,1.6028]
[1727755833521,3.79585,2634.5,2634.0,1.6028]
[1727755834130,7.59172,2634.5,2634.1,0.09702692]
[1727755834459,3.79615,2634.3,2634.1,0.09702692]
[1727755835427,4.555351,2634.3,2634.1,0.09702692]
[1727755835632,3.79637,2634.1,2633.7,1.582]
[1727755836896,5.40085,2634.3,2633.7,1.582]
[1727755836897,5.40085,2634.3,2633.7,5.37886]
[1727755837099,5.42716,2634.5,2633.7,5.37886]
[1727755837434,5.42716,2634.5,2633.7,3.79686]
[1727755837618,3.796,2634.4,2633.9,3.79664]
[1727755837817,3.7961,2634.3,2633.8,5.31586]
[1727755839337,3.7961,2634.3,2633.8,1.5191]
[1727755839851,3.7961,2634.3,2633.8,5.31589]
[1727755840730,3.79585,2634.5,2634.0,3.7965]
[1727755840929,3.79585,2634.5,2633.9,5.34853]
[1727755841146,3.79585,2634.5,2634.0,3.79647]
[1727755842912,4.5024,2634.8,2634.2,1.6315]
[1727755843118,3.79568,2634.6,2634.2,1.6315]
[1727755847158,3.79627,2634.2,2633.9,1.603]
[1727755847450,3.7964,2634.1,2633.7,1.603]
[1727755847813,3.79652,2634.0,2633.7,1.603]
[1727755849220,3.79652,2634.0,2633.8,0.09706619]
[1727755849418,3.79627,2634.2,2633.7,1.603]
[1727755849648,3.79637,2634.1,2633.8,0.0971779]
[1727755849838,3.79637,2634.1,2633.7,1.603]
[1727755850040,3.79637,2634.1,2633.9,0.09714555]
[1727755850237,3.79637,2634.1,2633.7,1.603]
[1727755850463,3.79651,2634.0,2633.8,0.0971779]
[1727755851052,3.79651,2634.0,2633.9,0.09714555]
[1727755851615,3.79651,2634.0,2633.7,1.603]
[1727755851921,3.79651,2634.0,2633.9,0.09714555]
[1727755852121,3.79651,2634.0,2633.8,0.0971779]
[1727755852423,3.79651,2634.0,2633.9,0.09714555]
[1727755852647,3.79651,2634.0,2633.7,1.603]
[1727755852819,3.79651,2634.0,2633.7,2.15060629]
[1727755853146,7.59315,2634.0,2633.8,0.0971779]
[1727755853738,7.59315,2634.0,2633.7,1.603]
[1727755853965,3.79651,2634.0,2633.9,0.09714555]
[1727755854155,3.79651,2634.0,2633.8,0.0971779]
[1727755854473,3.79651,2634.0,2633.9,0.09714555]
[1727755854766,3.79651,2634.0,2633.7,1.603]
[1727755854978,3.79651,2634.0,2633.7,2.15061111]
[1727755855185,3.79651,2634.0,2633.8,0.0971779]
[1727755855544,3.79628,2634.2,2633.7,2.15061111]
[1727755855754,3.796,2634.4,2633.9,0.09714555]
[1727755855942,3.79615,2634.3,2633.8,0.0971779]
[1727755856283,3.79615,2634.3,2634.0,0.09711321]
[1727755856583,3.79615,2634.3,2633.8,0.99176269]
[1727755856785,3.79615,2634.3,2634.1,0.09708086]
[1727755857078,3.79615,2634.3,2633.8,0.99176269]
[1727755857079,3.79615,2634.3,2634.2,0.09704852]
[1727755857242,3.79631,2634.2,2633.8,0.99176269]
[1727755857443,3.79637,2634.1,2633.9,0.09714555]
[1727755858074,7.59234,2634.3,2633.9,0.09714555]
[1727755858283,3.79622,2634.2,2633.9,0.09714555]
[1727755858456,7.59232,2634.3,2633.9,0.09714555]
[1727755858651,3.79615,2634.3,2633.9,0.09714555]
[1727755858852,3.79625,2634.2,2633.9,0.09714555]
[1727755859179,3.79615,2634.3,2633.9,0.42109748]
[1727755860080,7.59232,2634.3,2633.9,0.42109748]
[1727755860287,3.79615,2634.3,2633.9,0.42109748]
[1727755860579,3.79626,2634.2,2633.9,0.42109748]
[1727755861693,3.79601,2634.4,2633.9,0.42109748]
[1727755861842,3.79601,2634.4,2634.0,1.94067975]
[1727755862047,3.7961,2634.3,2634.1,0.09721569]
[1727755867486,7.59227,2634.3,2634.1,0.09721569]
[1727755867686,3.7961,2634.3,2634.1,0.09721569]
[1727755869297,3.79621,2634.2,2634.1,0.09721569]
[1727755869507,3.7961,2634.3,2633.8,1.6328]
[1727755869674,3.7964,2634.1,2633.9,0.09716482]
[1727755873053,3.7961,2634.3,2633.9,0.09716482]
[1727755873350,3.79625,2634.2,2633.9,0.09716482]
[1727755873951,3.7961,2634.3,2633.9,0.70461541]
[1727755874250,3.79566,2634.6,2634.0,1.5147]
[1727755874422,3.79535,2634.8,2634.1,5.31096]
[1727755874631,7.59081,2634.8,2634.2,3.87210495]
[1727755874828,1.5903,2634.9,2634.3,4.72399152]
[1727755875015,3.79516,2635.0,2634.4,1.5147]
[1727755875216,3.79538,2634.8,2634.4,1.5147]
[1727755875454,3.79538,2634.8,2634.5,0.09694767]
[1727755876218,3.21347157,2635.1,2634.5,0.09694767]
[1727755876550,3.79467,2635.3,2634.5,3.96863602]
[1727755876551,3.79514,2635.0,2634.5,3.96863602]
[1727755876758,3.79514,2635.0,2634.6,1.6101]
[1727755876916,3.79514,2635.0,2634.6,2.1679736]
[1727755877117,3.79514,2635.0,2634.7,0.09670013]
[1727755878127,7.5903,2635.0,2634.7,0.09670013]
[1727755878325,3.79523,2634.9,2634.7,0.09670013]
[1727755884344,5.41816157,2635.1,2634.7,0.09670013]
[1727755884345,3.79535,2634.8,2634.7,0.09670013]
[1727755884669,1.62317157,2635.1,2634.7,0.09670013]
[1727755884670,3.79525,2634.9,2634.7,0.09670013]
[1727755885340,3.79519,2635.0,2634.7,0.09670013]
[1727755886959,3.79515,2635.0,2634.7,0.09670013]
[1727755887174,3.79535,2634.8,2634.7,0.09670013]
[1727755887373,7.59028,2635.0,2634.7,0.09670013]
[1727755887581,3.79526,2634.9,2634.7,0.09670013]
[1727755888795,3.79514,2635.0,2634.7,0.09670013]
[1727755889153,7.59028,2635.0,2634.7,0.09670013]
[1727755889693,3.79514,2635.0,2634.7,0.09670013]
[1727755890068,7.59029,2635.0,2634.7,0.09670013]
[1727755890989,3.79467,2635.3,2634.8,5.35205]
[1727755891189,3.79467,2635.3,2634.8,1.5568]
[1727755891401,3.79467,2635.3,2634.9,0.09637741]
[1727755895973,5.29983,2635.4,2634.9,0.09637741]
[1727755897000,7.58941,2635.3,2634.9,0.09637741]
[1727755897206,5.41783157,2635.3,2634.9,0.09637741]
[1727755906523,3.79478,2635.2,2634.9,0.09637741]
[1727755906812,5.41783157,2635.3,2634.9,0.09637741]
[1727755907132,3.79454,2635.4,2635.0,1.5927]
[1727755907309,3.79464,2635.3,2635.1,0.0950933]
[1727755908997,3.79477,2635.2,2635.1,0.0950933]
[1727755910219,3.79464,2635.3,2635.1,0.0950933]
[1727755910915,7.58936,2635.3,2635.1,0.0950933]
[1727755911122,3.79477,2635.2,2635.1,0.0950933]
[1727755911604,4.553576,2635.3,2635.1,0.0950933]
[1727755911804,7.04034157,2635.2,2635.1,0.0950933]
[1727755912157,3.79512,2635.0,2634.7,1.589]
[1727755912344,3.79512,2635.0,2634.8,0.09517872]
[1727755912650,3.79535,2634.8,2634.4,1.589]
[1727755912941,3.79571,2634.6,2634.4,1.589]
[1727755913233,7.04097157,2634.8,2634.4,1.589]
[1727755913447,10.83641157,2634.8,2634.4,1.589]
[1727755914155,3.7954,2634.8,2634.4,1.589]
[1727755914707,3.79485,2635.2,2634.5,1.6503]
[1727755914914,3.79485,2635.2,2634.6,3.79563]
[1727755915113,3.79499,2635.1,2634.7,1.6503]
[1727755916140,5.41802157,2635.2,2634.7,1.6503]
[1727755916347,3.79509,2635.0,2634.7,1.6503]
[1727755917211,7.59028,2635.0,2634.7,1.6503]
[1727755917954,3.79509,2635.0,2634.7,1.6503]
[1727755918656,3.79522,2634.9,2634.7,1.6503]
[1727755920535,3.79518,2635.0,2634.7,1.6503]
[1727755921962,7.59036,2635.0,2634.7,1.6503]
[1727755922129,3.79518,2635.0,2634.7,1.6503]
[1727755923423,7.59033,2635.0,2634.7,1.6503]
[1727755923765,3.79515,2635.0,2634.7,1.6503]
[1727755923958,7.5903,2635.0,2634.7,1.6503]
[1727755924267,3.79521,2634.9,2634.8,0.09529037]
[1727755924624,3.79515,2635.0,2634.7,1.6503]
[1727755924830,3.79515,2635.0,2634.8,0.09529037]
[1727755925260,7.59034,2635.0,2634.7,1.6503]
[1727755925457,3.79515,2635.0,2634.9,0.09525805]
[1727755925669,3.79515,2635.0,2634.8,0.09529037]
[1727755925965,3.79515,2635.0,2634.9,0.09525805]
[1727755926181,3.79515,2635.0,2634.7,1.6503]
[1727755926373,3.79515,2635.0,2634.8,0.09529037]
[1727755926665,5.41802157,2635.2,2634.9,1.5479]
[1727755926666,3.79485,2635.2,2634.9,1.5479]
[1727755926830,7.58919,2635.4,2634.9,1.5479]
[1727755927174,3.79457,2635.4,2635.0,0.09522572]
[1727755927370,3.79473,2635.3,2635.0,0.09522572]
[1727755927864,3.79481,2635.2,2635.0,0.09522572]
[1727755928778,7.58967,2635.2,2635.0,0.09522572]
[1727755929087,3.79481,2635.2,2635.0,0.09522572]
[1727755929657,7.58967,2635.2,2635.0,0.09522572]
[1727755929862,3.79481,2635.2,2635.0,0.09522572]
[1727755930557,7.5897,2635.2,2635.0,0.09522572]
[1727755930897,7.58969,2635.2,2635.0,0.09522572]
[1727755931079,3.79474,2635.3,2635.0,0.09522572]
[1727755931683,3.79478,2635.2,2635.0,0.09522572]
[1727755932689,3.16857157,2635.1,2635.0,0.09522572]
[1727755932982,3.16857157,2635.1,2634.5,5.41074]
[1727755933181,3.7951,2635.0,2634.5,5.41074]
[1727755934182,3.7951,2635.0,2634.5,5.41067]
[1727755934844,7.59028,2635.0,2634.5,1.615]
[1727755935042,5.41846157,2634.9,2634.5,1.615]
[1727755935358,5.41867157,2634.7,2634.3,1.505]
[1727755935558,5.41867157,2634.7,2634.1,9.63828665]
[1727755935559,5.41896157,2634.5,2634.1,9.63828665]
[1727755935887,3.79595,2634.4,2634.0,19.95]
[1727755936095,6.97396157,2634.5,2634.0,19.95]
[1727755936300,3.79601,2634.4,2634.0,19.95]
[1727755936458,6.97396157,2634.5,2634.0,19.95]
[1727755936860,3.79553,2634.7,2634.2,3.79616]
[1727755937109,1.5535,2635.1,2634.3,1.6648]
[1727755937404,3.79479,2635.2,2634.7,3.79549]
[1727755937757,3.79479,2635.2,2634.6,1.66950502]
[1727755937959,3.79479,2635.2,2634.7,0.5465205]
[1727755938159,7.5897,2635.2,2634.6,5.46510502]
[1727755938396,3.79492,2635.1,2634.6,5.46510502]
[1727755938903,3.79492,2635.1,2634.6,1.66950502]
[1727755939258,3.79492,2635.1,2634.7,0.09532272]
[1727755939854,1.5984,2635.3,2634.7,0.09532272]
[1727755940097,3.79457,2635.4,2634.8,5.42261802]
[1727755940311,7.58859,2635.6,2635.1,1.5514]
[1727755940477,3.79437,2635.5,2635.1,1.5514]
[1727755940797,3.79437,2635.5,2635.2,0.0950456]
[1727755940999,3.79449,2635.4,2635.2,0.0950456]
[1727755943373,5.39653,2635.3,2635.2,0.0950456]
[1727755943587,1.6019,2635.3,2634.8,1.5473]
[1727755943783,3.79485,2635.2,2634.8,1.5473]
[1727755944388,7.58975,2635.2,2634.8,1.5473]
[1727755944600,3.79514,2635.0,2634.6,1.5545]
[1727755944812,8.22767653,2635.2,2634.6,1.5545]
[1727755944985,3.79506,2635.1,2634.6,1.5545]
[1727755945176,3.79509,2635.0,2634.6,1.5545]
[1727755945572,1.5837,2634.9,2634.4,1.5545]
[1727755945827,3.79539,2634.8,2634.4,1.5545]
[1727755946024,1.5837,2634.9,2634.4,5.35039]
[1727755946340,1.5837,2634.9,2634.2,5.35068]
[1727755946341,3.79554,2634.7,2634.2,5.35068]
[1727755946618,3.79537,2634.8,2634.3,3.79599]
[1727755946820,5.37892,2634.9,2634.3,3.79599]
[1727755946976,9.17421,2634.9,2634.3,3.79599]
[1727755947309,5.37892,2634.9,2634.3,4.78999867]
[1727755947514,3.79522,2634.9,2634.4,3.79591]
[1727755947712,3.79522,2634.9,2634.5,1.6493]
[1727755950420,3.79488,2635.2,2634.8,1.6181]
[1727755952480,3.79487,2635.2,2634.8,1.6181]
[1727755954017,3.79487,2635.2,2634.9,0.09530424]
[1727755955316,7.58995,2635.1,2634.9,0.09530424]
[1727755955616,3.79506,2635.0,2634.9,0.09530424]
[1727755955819,3.79492,2635.1,2634.9,0.09530424]
[1727755955979,3.79492,2635.1,2634.6,5.37783]
[1727755956180,0.534617,2635.2,2634.7,0.09528804]
[1727755956181,3.79489,2635.2,2634.7,0.09528804]
[1727755956987,3.79501,2635.1,2634.7,0.09528804]
[1727755957238,3.79509,2635.0,2634.7,0.09528804]
[1727755959402,3.79492,2635.1,2634.7,0.09528804]
[1727755960828,8.86761153,2635.0,2634.7,0.09528804]
[1727755960999,3.79535,2634.8,2634.7,0.09528804]
[1727755961199,3.79521,2634.9,2634.4,7.59175]
[1727755961424,5.07244153,2635.0,2634.5,3.89105807]
[1727755961631,8.86752153,2635.0,2634.5,3.89105807]
[1727755962038,10.2447998,2635.0,2634.5,3.89105807]
[1727755962220,6.4497198,2635.0,2634.5,3.89105807]
[1727755963434,6.4497198,2635.0,2634.6,3.79561]
[1727755963619,6.4497198,2635.0,2634.6,3.89090729]
[1727755966301,2.93607827,2635.0,2634.6,3.89090729]
[1727755967264,5.38479,2634.7,2634.6,0.09529729]
[1727755967542,1.5893,2634.7,2634.6,0.09529729]
[1727755967708,3.21235674,2634.7,2634.1,5.34073]
[1727755967899,1.62305674,2634.5,2634.1,5.34073]
[1727755968296,1.62305674,2634.5,2634.1,3.79633]
[1727755969044,1.62305674,2634.5,2634.2,0.09237401]
[1727755969607,1.5893,2634.7,2634.2,0.09237401]
[1727755970009,5.3848,2634.7,2634.2,0.09237401]
[1727755970634,1.5893,2634.7,2634.3,1.5728]
[1727755970947,5.43471,2634.9,2634.3,5.36878]
[1727755971107,5.43471,2634.9,2634.4,0.09230934]
[1727755972448,9.23002,2634.9,2634.4,0.09230934]
[1727755973148,5.43471,2634.9,2634.4,0.09230934]
[1727755973348,3.79537,2634.8,2634.4,0.09230934]
[1727755980942,3.79567,2634.6,2634.4,0.09230934]
[1727755981836,3.79561,2634.7,2634.4,0.09230934]
[1727755982940,3.79535,2634.8,2634.4,0.09230934]
[1727755983469,3.79572,2634.6,2634.4,0.09230934]
[1727755984845,3.79557,2634.7,2634.4,0.09230934]
[1727755988058,3.79535,2634.8,2634.4,0.09230934]
[1727755988985,3.7955,2634.7,2634.4,0.09230934]
[1727755990955,5.41832411,2634.6,2634.4,0.09230934]
[1727755991142,3.79578,2634.5,2634.4,0.09230934]
[1727755991599,3.79642,2634.1,2633.8,1.6226]
[1727755991951,1.62260411,2634.0,2633.8,1.6226]
[1727755992175,5.41919411,2634.0,2633.6,1.6226]
[1727755992411,1.62260411,2633.8,2633.6,1.6226]
[1727755993292,1.62260411,2633.8,2633.6,5.41968]
[1727755993514,5.05436724,2634.1,2633.3,1.6226]
[1727755993725,7.31462724,2633.9,2633.4,3.79734]
[1727755993940,7.31462724,2633.9,2633.3,1.6226]
[1727755994138,3.79682,2633.8,2633.3,1.6226]
[1727755994643,3.79682,2633.8,2633.3,5.42008]
[1727755994847,3.79682,2633.8,2633.3,1.6226]
[1727755996258,3.79719,2633.6,2633.1,19.95]
[1727755996422,3.51796724,2633.4,2633.0,3.79782]
[1727755996621,7.31515724,2633.6,2633.0,3.79782]
[1727755997242,7.31515724,2633.6,2632.9,1.5051]
[1727755997243,3.79731,2633.5,2632.9,5.30315]
[1727755997621,3.79731,2633.5,2633.0,3.79794]
[1727755998061,7.31515724,2633.6,2633.0,3.79794]
[1727755999040,3.51796724,2633.4,2633.1,0.09353105]
[1727755999436,3.51796724,2633.4,2632.8,3.8758768]
[1727755999437,1.6533,2633.3,2632.8,3.8758768]
[1727755999638,7.31573724,2633.2,2632.8,0.0777368]
[1727756000132,3.51796724,2633.2,2632.8,0.0777368]
[1727756000831,3.51796724,2633.2,2632.8,3.8759568]
[1727756001039,3.51796724,2633.0,2632.8,0.0777368]
[1727756001569,5.41269,2632.9,2632.8,0.0777368]
[1727756001730,1.6146,2632.9,2632.8,0.0777368]
[1727756002968,3.79788,2633.1,2632.8,0.0777368]
[1727756002969,8.83744724,2633.1,2632.8,0.0777368]
[1727756003259,5.03956724,2633.1,2632.8,0.0777368]
[1727756003732,1.5216,2633.1,2632.8,0.0777368]
[1727756004759,1.6436,2633.3,2632.8,0.0777368]
[1727756005067,7.31526724,2633.5,2632.8,4.42360548]
[1727756005068,8.82466724,2633.5,2632.8,4.42360548]
[1727756005265,8.82466724,2633.5,2632.9,3.798]
[1727756005626,3.79774,2633.2,2632.8,0.0777368]
[1727756005967,1.6502,2633.1,2632.8,0.0777368]
[1727756006133,2.92655372,2633.1,2632.8,0.0777368]
[1727756006332,6.72435372,2633.1,2632.8,0.0777368]
[1727756006570,3.79796,2633.0,2632.8,0.0777368]
[1727756006756,7.31592724,2633.0,2632.8,0.0777368]
[1727756007072,7.31592724,2633.0,2632.9,0.09422019]
[1727756007416,8.71994434,2633.0,2632.9,0.09422019]
[1727756007540,1.4040171,2633.0,2632.9,0.09422019]
[1727756007861,1.6502,2633.1,2632.9,0.09422019]
[1727756011254,7.31565724,2633.2,2632.9,0.09422019]
[1727756011777,1.581,2633.3,2632.9,1.63002019]
[1727756011936,7.59491,2633.4,2632.9,1.63002019]
[1727756012138,7.31541724,2633.4,2632.9,1.63002019]
[1727756012447,11.11292724,2633.4,2632.9,1.63002019]
[1727756013073,3.79752,2633.3,2632.9,1.63002019]
[1727756013775,7.31541724,2633.4,2632.9,5.42808019]
[1727756014147,7.31541724,2633.4,2632.9,1.63002019]
[1727756014357,3.79751,2633.3,2632.9,1.63002019]
[1727756016577,3.79745,2633.4,2632.9,1.63002019]
[1727756018270,3.79753,2633.3,2632.9,1.63002019]
[1727756018664,1.6241,2633.7,2633.2,3.79765]
[1727756018863,3.79688,2633.8,2633.3,1.5792]
[1727756019390,3.79688,2633.8,2633.4,0.09403137]
[1727756021290,9.21727,2634.0,2633.4,0.09403137]